[Event "*** Titled Tuesday 3|2 Blitz"]
[Site "Chess.com"]
[Date "2015.10.06"]
[Round "2"]
[White "Viaje"]
[Black "KyronGriffith"]
[Result "1-0"]
[WhiteElo "2193"]
[BlackElo "2214"]
[TimeControl "180+2"]
[EndTime "17:21:34 PDT"]
[Termination "Viaje won by resignation"]

1. d4 {[%clk 0:03:01.9]} 1... Nf6 {[%clk 0:03:00.1]} 2. c4 {[%clk 0:02:58.4]}
2... c5 {[%clk 0:03:01.3]} 3. d5 {[%clk 0:02:58.7]} 3... e6 {[%clk 0:03:02.9]}
4. Nc3 {[%clk 0:02:59.9]} 4... exd5 {[%clk 0:03:04.1]} 5. cxd5 {[%clk
0:03:01.8]} 5... d6 {[%clk 0:03:05.2]} 6. Nf3 {[%clk 0:03:03.3]} 6... g6 {[%clk
0:03:05.8]} 7. Bf4 {[%clk 0:03:04.3]} 7... a6 {[%clk 0:03:06]} 8. a4 {[%clk
0:03:04.8]} 8... Bg7 {[%clk 0:03:06.6]} 9. e3 {[%clk 0:03:06.5]} 9... O-O {[%clk
0:03:07.1]} 10. h3 {[%clk 0:03:08.1]} 10... Bf5 {[%clk 0:03:07.2]} 11. Nd2
{[%clk 0:03:03.4]} 11... Re8 {[%clk 0:03:07.1]} 12. Be2 {[%clk 0:02:30.9]} 12...
Ne4 {[%clk 0:03:01.5]} 13. g4 {[%clk 0:02:19.6]} 13... Bxc3 {[%clk 0:02:24.8]}
14. bxc3 {[%clk 0:02:21.5]} 14... Nxc3 {[%clk 0:02:26.7]} 15. Qb3 {[%clk
0:02:21.1]} 15... Nxe2 {[%clk 0:02:24.7]} 16. Kxe2 {[%clk 0:02:22.2]} 16... Bc8
{[%clk 0:02:22]} 17. Qb6 {[%clk 0:02:02.8]} 17... Nd7 {[%clk 0:02:06.2]} 18.
Qxd6 {[%clk 0:01:56.5]} 18... Qa5 {[%clk 0:01:57]} 19. h4 {[%clk 0:01:35.5]}
19... Nf8 {[%clk 0:01:31.7]} 20. f3 {[%clk 0:01:19.4]} 20... Rd8 {[%clk
0:01:27.2]} 21. Qe5 {[%clk 0:01:18.4]} 21... Nd7 {[%clk 0:01:24.6]} 22. Qc7
{[%clk 0:00:57.5]} 22... Qxc7 {[%clk 0:01:22.5]} 23. Bxc7 {[%clk 0:00:59.4]}
23... Re8 {[%clk 0:01:24.2]} 24. Rhc1 {[%clk 0:00:56.5]} 24... b6 {[%clk
0:01:20]} 25. Nc4 {[%clk 0:00:54.7]} 25... Ra7 {[%clk 0:01:10.1]} 26. d6 {[%clk
0:00:50.2]} 26... a5 {[%clk 0:01:06.7]} 27. Nxb6 {[%clk 0:00:48.6]} 27... Ba6+
{[%clk 0:01:07.7]} 28. Kf2 {[%clk 0:00:48.7]} 28... Ne5 {[%clk 0:01:01.2]} 29.
Kg3 {[%clk 0:00:38.2]} 29... Nd3 {[%clk 0:00:52.1]} 30. Rc3 {[%clk 0:00:38.5]}
30... f5 {[%clk 0:00:45.6]} 31. d7 {[%clk 0:00:35.5]} 1-0

[Event "*** Titled Tuesday 3|2 Blitz"]
[Site "Chess.com"]
[Date "2015.10.06"]
[Round "2"]
[White "ltpnj"]
[Black "Dlugy"]
[Result "0-1"]
[WhiteElo "2333"]
[BlackElo "2553"]
[TimeControl "180+2"]
[EndTime "17:22:19 PDT"]
[Termination "Dlugy won by resignation"]

1. e4 {[%clk 0:03:01.9]} 1... d5 {[%clk 0:03:00.4]} 2. exd5 {[%clk 0:02:57.9]}
2... Qxd5 {[%clk 0:03:02.3]} 3. Nc3 {[%clk 0:02:58.7]} 3... Qd6 {[%clk
0:03:03.3]} 4. d4 {[%clk 0:02:58.7]} 4... c6 {[%clk 0:03:04.8]} 5. Nf3 {[%clk
0:02:55]} 5... Bg4 {[%clk 0:03:05.8]} 6. Be2 {[%clk 0:02:55.7]} 6... Nd7 {[%clk
0:03:06.4]} 7. O-O {[%clk 0:02:51.1]} 7... Ngf6 {[%clk 0:03:07.5]} 8. Bg5 {[%clk
0:02:34.1]} 8... e6 {[%clk 0:03:08.4]} 9. Bh4 {[%clk 0:02:32]} 9... Qc7 {[%clk
0:03:09.3]} 10. Ne5 {[%clk 0:02:23]} 10... Nxe5 {[%clk 0:02:54.4]} 11. dxe5
{[%clk 0:02:20.4]} 11... Bxe2 {[%clk 0:02:52.9]} 12. Qxe2 {[%clk 0:02:21.3]}
12... Nd5 {[%clk 0:02:51.8]} 13. Nxd5 {[%clk 0:01:47.9]} 13... cxd5 {[%clk
0:02:52.6]} 14. Rac1 {[%clk 0:01:37.1]} 14... Rc8 {[%clk 0:02:50.4]} 15. Rfd1
{[%clk 0:01:09.4]} 15... Qc4 {[%clk 0:02:49.2]} 16. Qh5 {[%clk 0:00:49.1]} 16...
Bc5 {[%clk 0:02:27.8]} 17. b3 {[%clk 0:00:39.2]} 17... Qc3 {[%clk 0:01:40.1]}
18. Qg5 {[%clk 0:00:23.9]} 18... O-O {[%clk 0:01:38]} 19. Re1 {[%clk 0:00:19.4]}
19... Ba3 {[%clk 0:01:34]} 20. Rcd1 {[%clk 0:00:18.4]} 20... Qxc2 {[%clk
0:01:35]} 21. Qg3 {[%clk 0:00:15.9]} 21... Qg6 {[%clk 0:01:24.3]} 22. Qf3 {[%clk
0:00:15.6]} 22... Rc2 {[%clk 0:01:24.2]} 23. Re2 {[%clk 0:00:16.8]} 23... Rfc8
{[%clk 0:01:23.5]} 24. h3 {[%clk 0:00:17.4]} 24... h6 {[%clk 0:01:18.9]} 25.
Rde1 {[%clk 0:00:15.8]} 25... Bb4 {[%clk 0:01:16.6]} 26. Rd1 {[%clk 0:00:16.7]}
26... a6 {[%clk 0:01:16]} 27. a4 {[%clk 0:00:16.6]} 27... R2c3 {[%clk 0:01:11]}
28. Re3 {[%clk 0:00:17.8]} 28... Qc2 {[%clk 0:01:10.7]} 29. Rde1 {[%clk
0:00:15]} 29... Qxb3 {[%clk 0:01:10.9]} 30. Bf6 {[%clk 0:00:16.2]} 30... Bf8
{[%clk 0:00:56.5]} 31. Qg4 {[%clk 0:00:10.3]} 31... Rxe3 {[%clk 0:00:43.7]} 32.
Rxe3 {[%clk 0:00:11.1]} 32... Qc4 {[%clk 0:00:43.1]} 33. Qg3 {[%clk 0:00:11.4]}
33... Qxa4 {[%clk 0:00:41.2]} 34. Rf3 {[%clk 0:00:12.5]} 34... Qd1+ {[%clk
0:00:39.1]} 35. Kh2 {[%clk 0:00:13.8]} 35... Rc1 {[%clk 0:00:39.7]} 36. Qg4
{[%clk 0:00:14.3]} 36... Rc4 {[%clk 0:00:33.6]} 37. Qg3 {[%clk 0:00:13.6]} 37...
Qc2 {[%clk 0:00:33.1]} 38. Bd8 {[%clk 0:00:11.1]} 38... Qg6 {[%clk 0:00:33.3]}
0-1

[Event "*** Titled Tuesday 3|2 Blitz"]
[Site "Chess.com"]
[Date "2015.10.06"]
[Round "2"]
[White "HansCoolNiemann"]
[Black "zmaj23"]
[Result "0-1"]
[WhiteElo "2106"]
[BlackElo "2317"]
[TimeControl "180+2"]
[EndTime "17:22:59 PDT"]
[Termination "zmaj23 won by resignation"]

1. d4 {[%clk 0:03:01.9]} 1... Nf6 {[%clk 0:03:00.5]} 2. c4 {[%clk 0:02:58.2]}
2... e5 {[%clk 0:03:01.5]} 3. dxe5 {[%clk 0:02:57]} 3... Ng4 {[%clk 0:03:02.7]}
4. Bf4 {[%clk 0:02:57.4]} 4... g5 {[%clk 0:03:02.6]} 5. Bg3 {[%clk 0:02:57.6]}
5... Bg7 {[%clk 0:03:03.4]} 6. Nf3 {[%clk 0:02:57.5]} 6... Nc6 {[%clk
0:03:03.4]} 7. Nc3 {[%clk 0:02:56]} 7... Ngxe5 {[%clk 0:03:03.9]} 8. Nxe5 {[%clk
0:02:55]} 8... Nxe5 {[%clk 0:03:04.1]} 9. e3 {[%clk 0:02:54.5]} 9... d6 {[%clk
0:03:03.2]} 10. Be2 {[%clk 0:02:52.4]} 10... Be6 {[%clk 0:03:00]} 11. Qb3 {[%clk
0:02:52.3]} 11... b6 {[%clk 0:02:55.3]} 12. h4 {[%clk 0:02:46.7]} 12... g4
{[%clk 0:02:55.5]} 13. h5 {[%clk 0:02:47.7]} 13... h6 {[%clk 0:02:54.4]} 14. Bh4
{[%clk 0:02:46.9]} 14... Qd7 {[%clk 0:02:50.9]} 15. Nd5 {[%clk 0:02:46]} 15...
O-O {[%clk 0:02:47.2]} 16. Nf6+ {[%clk 0:02:41.9]} 16... Bxf6 {[%clk 0:02:47.3]}
17. Bxf6 {[%clk 0:02:43.8]} 17... Qc6 {[%clk 0:02:45.4]} 18. O-O {[%clk
0:02:35]} 18... Bxc4 {[%clk 0:02:32.5]} 19. Bxc4 {[%clk 0:02:32]} 19... Qxc4
{[%clk 0:02:34.4]} 20. Qxc4 {[%clk 0:02:32.4]} 20... Nxc4 {[%clk 0:02:34.8]} 21.
Rac1 {[%clk 0:02:32.9]} 21... Nd2 {[%clk 0:02:31.7]} 22. Rfd1 {[%clk 0:02:31.9]}
22... Ne4 {[%clk 0:02:32.8]} 23. Bh4 {[%clk 0:02:31.8]} 23... Nc5 {[%clk
0:02:26.9]} 24. b4 {[%clk 0:02:31.5]} 24... Ne6 {[%clk 0:02:28.1]} 25. Rc4
{[%clk 0:02:28.6]} 25... f5 {[%clk 0:02:26.2]} 26. f3 {[%clk 0:02:25.6]} 26...
b5 {[%clk 0:02:23.2]} 27. Rc3 {[%clk 0:02:21.2]} 27... a5 {[%clk 0:02:24.1]} 28.
Rb1 {[%clk 0:02:09.1]} 28... axb4 {[%clk 0:02:24.2]} 29. Rxb4 {[%clk 0:02:11]}
29... Rxa2 {[%clk 0:02:18.5]} 30. Rxb5 {[%clk 0:02:10.4]} 30... f4 {[%clk
0:02:16.4]} 31. fxg4 {[%clk 0:02:03.4]} 31... f3 {[%clk 0:02:11.8]} 32. gxf3
{[%clk 0:01:56.8]} 32... Rxf3 {[%clk 0:02:13.7]} 33. Rf5 {[%clk 0:01:56.6]}
33... Nd4 {[%clk 0:01:57.3]} 34. Rxf3 {[%clk 0:01:16.6]} 34... Nxf3+ {[%clk
0:01:59.2]} 35. Kf1 {[%clk 0:01:17.5]} 35... Nxh4 {[%clk 0:01:59.2]} 36. Rxc7
{[%clk 0:01:18.9]} 36... Nf3 {[%clk 0:01:50.9]} 37. Rc6 {[%clk 0:01:16.3]} 37...
Rd2 {[%clk 0:01:51.9]} 38. Rc8+ {[%clk 0:01:15]} 38... Kf7 {[%clk 0:01:51.8]}
39. Rh8 {[%clk 0:01:14.9]} 39... Kg7 {[%clk 0:01:50.9]} 40. Re8 {[%clk
0:01:14.8]} 40... Ne5 {[%clk 0:01:49.3]} 41. Re7+ {[%clk 0:01:12.2]} 41... Kf6
{[%clk 0:01:48.1]} 42. Re8 {[%clk 0:01:06.9]} 42... Nxg4 {[%clk 0:01:48.9]} 43.
Rg8 {[%clk 0:01:07.8]} 43... Ne5 {[%clk 0:01:49.3]} 44. Ke1 {[%clk 0:01:08.3]}
44... Rh2 {[%clk 0:01:40.7]} 45. Rd8 {[%clk 0:01:05.7]} 45... Rxh5 {[%clk
0:01:39]} 46. Rxd6+ {[%clk 0:01:05.3]} 46... Kf5 {[%clk 0:01:40.6]} 47. Kf2
{[%clk 0:01:05.4]} 47... Rh3 {[%clk 0:01:30.5]} 48. Rd8 {[%clk 0:01:02.9]} 48...
Ng4+ {[%clk 0:01:28.3]} 49. Kg2 {[%clk 0:01:01.5]} 49... Rxe3 {[%clk 0:01:29.1]}
50. Rf8+ {[%clk 0:01:01.3]} 50... Kg5 {[%clk 0:01:28.9]} 51. Rg8+ {[%clk
0:01:01.4]} 51... Kh4 {[%clk 0:01:29.8]} 52. Rf8 {[%clk 0:01:01.5]} 52... Rg3+
{[%clk 0:01:25.8]} 53. Kh1 {[%clk 0:01:00.5]} 53... Kh3 {[%clk 0:01:15.7]} 54.
Rf5 {[%clk 0:01:00.2]} 54... Ra3 {[%clk 0:00:51.1]} 55. Kg1 {[%clk 0:00:56.1]}
55... Kg3 {[%clk 0:00:50.2]} 56. Kf1 {[%clk 0:00:54.8]} 56... Ne3+ {[%clk
0:00:50.6]} 57. Ke2 {[%clk 0:00:54.8]} 57... Nxf5 {[%clk 0:00:52.5]} 0-1

[Event "*** Titled Tuesday 3|2 Blitz"]
[Site "Chess.com"]
[Date "2015.10.06"]
[Round "2"]
[White "ChessFrois"]
[Black "Assasin14"]
[Result "0-1"]
[WhiteElo "1821"]
[BlackElo "1739"]
[TimeControl "180+2"]
[EndTime "17:23:12 PDT"]
[Termination "Assasin14 won by checkmate"]

1. e4 {[%clk 0:02:54.1]} 1... c5 {[%clk 0:02:59.1]} 2. Nf3 {[%clk 0:02:53.6]}
2... Nc6 {[%clk 0:02:59.5]} 3. d4 {[%clk 0:02:54.3]} 3... cxd4 {[%clk
0:03:01.4]} 4. Nxd4 {[%clk 0:02:53.4]} 4... g6 {[%clk 0:03:02.1]} 5. Bc4 {[%clk
0:02:13.7]} 5... Bg7 {[%clk 0:02:57.8]} 6. Nxc6 {[%clk 0:02:14]} 6... bxc6
{[%clk 0:02:57]} 7. Nc3 {[%clk 0:02:12.3]} 7... d6 {[%clk 0:02:33.9]} 8. O-O
{[%clk 0:02:09.4]} 8... Nf6 {[%clk 0:02:33.5]} 9. e5 {[%clk 0:01:53.5]} 9...
dxe5 {[%clk 0:02:32.5]} 10. Qxd8+ {[%clk 0:01:52.6]} 10... Kxd8 {[%clk
0:02:32.2]} 11. Bxf7 {[%clk 0:01:53.3]} 11... Bf5 {[%clk 0:02:13.4]} 12. Bb3
{[%clk 0:01:50.7]} 12... e6 {[%clk 0:01:48.8]} 13. Be3 {[%clk 0:01:46.4]} 13...
Nd5 {[%clk 0:01:45.2]} 14. Rad1 {[%clk 0:01:40.8]} 14... Kc7 {[%clk 0:01:41.8]}
15. Bc5 {[%clk 0:01:25.2]} 15... Nxc3 {[%clk 0:01:09.2]} 16. bxc3 {[%clk
0:01:26]} 16... a5 {[%clk 0:01:04]} 17. a4 {[%clk 0:01:11.1]} 17... Rhd8 {[%clk
0:00:51.9]} 18. h3 {[%clk 0:01:05.4]} 18... h5 {[%clk 0:00:49.2]} 19. Rfe1
{[%clk 0:00:51.1]} 19... e4 {[%clk 0:00:36.6]} 20. Bd4 {[%clk 0:00:35.1]} 20...
Bxd4 {[%clk 0:00:21]} 21. cxd4 {[%clk 0:00:36.1]} 21... c5 {[%clk 0:00:21.5]}
22. dxc5 {[%clk 0:00:29.8]} 22... Kc6 {[%clk 0:00:22.7]} 23. Kf1 {[%clk
0:00:21.4]} 23... Kxc5 {[%clk 0:00:23.6]} 24. Ke2 {[%clk 0:00:17.2]} 24... Kb4
{[%clk 0:00:24.6]} 25. Ke3 {[%clk 0:00:17.8]} 25... Rac8 {[%clk 0:00:25.1]} 26.
Rd4+ {[%clk 0:00:11.2]} 26... Rxd4 {[%clk 0:00:25.3]} 27. Kxd4 {[%clk
0:00:13.1]} 27... e3 {[%clk 0:00:25.5]} 28. Rxe3 {[%clk 0:00:09.9]} 28... Bxc2
{[%clk 0:00:26.6]} 29. Rxe6 {[%clk 0:00:09]} 29... Bxb3 {[%clk 0:00:26.5]} 30.
Rxg6 {[%clk 0:00:07.8]} 30... Rc2 {[%clk 0:00:25.2]} 31. Rg5 {[%clk 0:00:03.7]}
31... Bf7 {[%clk 0:00:23.5]} 32. Ke3 {[%clk 0:00:04]} 32... Kxa4 {[%clk
0:00:23.1]} 33. Rf5 {[%clk 0:00:05.1]} 33... Bg6 {[%clk 0:00:23.4]} 34. Rf4+
{[%clk 0:00:07]} 34... Kb5 {[%clk 0:00:24]} 35. g4 {[%clk 0:00:08.9]} 35... hxg4
{[%clk 0:00:23.4]} 36. hxg4 {[%clk 0:00:10.8]} 36... a4 {[%clk 0:00:24.2]} 37.
Rf6 {[%clk 0:00:11.8]} 37... Be8 {[%clk 0:00:20.3]} 38. g5 {[%clk 0:00:11.8]}
38... a3 {[%clk 0:00:20.5]} 39. Rf8 {[%clk 0:00:13]} 39... a2 {[%clk 0:00:20.1]}
40. Rxe8 {[%clk 0:00:13.7]} 40... a1=Q {[%clk 0:00:20.8]} 41. g6 {[%clk
0:00:14.9]} 41... Qc3+ {[%clk 0:00:20.7]} 42. Kf4 {[%clk 0:00:15.4]} 42... Rxf2+
{[%clk 0:00:21.8]} 43. Kg5 {[%clk 0:00:16.5]} 43... Qg3+ {[%clk 0:00:22.9]} 44.
Kh6 {[%clk 0:00:17.5]} 44... Qh4+ {[%clk 0:00:24.2]} 45. Kg7 {[%clk 0:00:18.3]}
45... Qf6+ {[%clk 0:00:25.3]} 46. Kh7 {[%clk 0:00:18.7]} 46... Rh2+ {[%clk
0:00:26]} 47. Kg8 {[%clk 0:00:20]} 47... Rh8# {[%clk 0:00:27.9]} 0-1

[Event "*** Titled Tuesday 3|2 Blitz"]
[Site "Chess.com"]
[Date "2015.10.06"]
[Round "2"]
[White "Canonkasparov"]
[Black "Bab3s"]
[Result "0-1"]
[WhiteElo "2394"]
[BlackElo "2126"]
[TimeControl "180+2"]
[EndTime "17:23:26 PDT"]
[Termination "Bab3s won by checkmate"]

1. d4 {[%clk 0:03:01.9]} 1... Nf6 {[%clk 0:03:00.5]} 2. Nf3 {[%clk 0:02:58.5]}
2... e6 {[%clk 0:03:01]} 3. c3 {[%clk 0:02:57.6]} 3... c5 {[%clk 0:03:00.9]} 4.
Bf4 {[%clk 0:02:56.5]} 4... Be7 {[%clk 0:03:01.6]} 5. e3 {[%clk 0:02:56.9]} 5...
O-O {[%clk 0:03:02.5]} 6. Nbd2 {[%clk 0:02:56.7]} 6... b6 {[%clk 0:03:02]} 7. a4
{[%clk 0:02:54.9]} 7... Nh5 {[%clk 0:02:55.6]} 8. Bg3 {[%clk 0:02:50.4]} 8...
Bb7 {[%clk 0:02:52.7]} 9. Be2 {[%clk 0:02:49.2]} 9... d6 {[%clk 0:02:50.4]} 10.
O-O {[%clk 0:02:48.7]} 10... Nxg3 {[%clk 0:02:50.5]} 11. hxg3 {[%clk 0:02:49.1]}
11... Nd7 {[%clk 0:02:52]} 12. Ne1 {[%clk 0:02:46.4]} 12... e5 {[%clk
0:02:43.1]} 13. Bf3 {[%clk 0:02:41.7]} 13... Bxf3 {[%clk 0:02:39.8]} 14. Nexf3
{[%clk 0:02:41.9]} 14... exd4 {[%clk 0:02:40.5]} 15. cxd4 {[%clk 0:02:39.8]}
15... a6 {[%clk 0:02:07.3]} 16. Qb3 {[%clk 0:02:39]} 16... Rb8 {[%clk
0:02:05.4]} 17. Rfd1 {[%clk 0:02:34.4]} 17... Qc7 {[%clk 0:01:45.4]} 18. Rdc1
{[%clk 0:02:29.3]} 18... b5 {[%clk 0:01:41.5]} 19. axb5 {[%clk 0:02:29]} 19...
axb5 {[%clk 0:01:42.6]} 20. Ne4 {[%clk 0:02:18]} 20... Qb7 {[%clk 0:01:20.9]}
21. Qc2 {[%clk 0:02:15.9]} 21... h6 {[%clk 0:01:09.2]} 22. Rd1 {[%clk
0:02:07.1]} 22... c4 {[%clk 0:01:00.4]} 23. Nc3 {[%clk 0:01:50.2]} 23... Rfc8
{[%clk 0:00:51.9]} 24. Nd2 {[%clk 0:01:43.3]} 24... b4 {[%clk 0:00:43.6]} 25.
Ne2 {[%clk 0:01:37]} 25... d5 {[%clk 0:00:43.7]} 26. Nf3 {[%clk 0:01:32.6]}
26... Nf6 {[%clk 0:00:38.2]} 27. Ne5 {[%clk 0:01:31.3]} 27... b3 {[%clk
0:00:33.8]} 28. Qf5 {[%clk 0:01:23.1]} 28... Ra8 {[%clk 0:00:24.7]} 29. Nc3
{[%clk 0:01:22.5]} 29... Rxa1 {[%clk 0:00:23.5]} 30. Rxa1 {[%clk 0:01:22.2]}
30... Ra8 {[%clk 0:00:24.7]} 31. Rd1 {[%clk 0:01:22.1]} 31... Bb4 {[%clk
0:00:19.4]} 32. Ne2 {[%clk 0:01:16.6]} 32... Ra2 {[%clk 0:00:17.7]} 33. Rb1
{[%clk 0:01:15.4]} 33... Ne4 {[%clk 0:00:16.5]} 34. Nf4 {[%clk 0:01:08.4]} 34...
Nd2 {[%clk 0:00:10.9]} 35. Rd1 {[%clk 0:01:06.4]} 35... Rxb2 {[%clk 0:00:09.3]}
36. Nh5 {[%clk 0:01:03.3]} 36... c3 {[%clk 0:00:05.1]} 37. Qg4 {[%clk
0:01:02.4]} 37... g6 {[%clk 0:00:03]} 38. Nxg6 {[%clk 0:00:58]} 38... fxg6
{[%clk 0:00:03.7]} 39. Qxg6+ {[%clk 0:00:58.7]} 39... Kf8 {[%clk 0:00:04.8]} 40.
Qxh6+ {[%clk 0:00:57.5]} 40... Ke8 {[%clk 0:00:05.2]} 41. Nf6+ {[%clk
0:00:57.5]} 41... Kd8 {[%clk 0:00:05.9]} 42. Qh8+ {[%clk 0:00:52.7]} 42... Kc7
{[%clk 0:00:06.4]} 43. Qg8 {[%clk 0:00:47.4]} 43... c2 {[%clk 0:00:05.2]} 44.
Nxd5+ {[%clk 0:00:47.4]} 44... Qxd5 {[%clk 0:00:05.5]} 45. Qxd5 {[%clk
0:00:34.9]} 45... cxd1=Q+ {[%clk 0:00:06.1]} 46. Kh2 {[%clk 0:00:36.8]} 46...
Nf1+ {[%clk 0:00:04.9]} 47. Kh3 {[%clk 0:00:36.9]} 47... Rc2 {[%clk 0:00:04.7]}
48. Qxb3 {[%clk 0:00:28]} 48... Qh5# {[%clk 0:00:04.6]} 0-1

[Event "*** Titled Tuesday 3|2 Blitz"]
[Site "Chess.com"]
[Date "2015.10.06"]
[Round "2"]
[White "chess960now"]
[Black "komaromy31"]
[Result "1/2-1/2"]
[WhiteElo "1967"]
[BlackElo "1899"]
[TimeControl "180+2"]
[EndTime "17:23:36 PDT"]
[Termination "Game drawn by agreement"]

1. e4 {[%clk 0:03:01.9]} 1... e6 {[%clk 0:03:00.7]} 2. d4 {[%clk 0:02:58]} 2...
d5 {[%clk 0:03:01.1]} 3. e5 {[%clk 0:02:59]} 3... c5 {[%clk 0:02:57.8]} 4. c3
{[%clk 0:02:57.9]} 4... Nc6 {[%clk 0:02:58.3]} 5. Nf3 {[%clk 0:02:58.2]} 5...
Qb6 {[%clk 0:02:58]} 6. Be2 {[%clk 0:02:48.8]} 6... Nh6 {[%clk 0:02:55.4]} 7. a3
{[%clk 0:02:47.3]} 7... cxd4 {[%clk 0:02:51.4]} 8. cxd4 {[%clk 0:02:47.7]} 8...
Nf5 {[%clk 0:02:52.1]} 9. Nc3 {[%clk 0:02:35.5]} 9... Nfxd4 {[%clk 0:02:49.7]}
10. Be3 {[%clk 0:02:10.1]} 10... Nxf3+ {[%clk 0:02:47.1]} 11. Bxf3 {[%clk
0:02:10.9]} 11... Qxb2 {[%clk 0:02:45.3]} 12. Na4 {[%clk 0:02:02.8]} 12... Qxe5
{[%clk 0:02:25.8]} 13. O-O {[%clk 0:01:58.9]} 13... Be7 {[%clk 0:02:22]} 14. Re1
{[%clk 0:01:58.5]} 14... Qf6 {[%clk 0:02:18.9]} 15. Rb1 {[%clk 0:01:32.3]} 15...
O-O {[%clk 0:02:16.1]} 16. Nc5 {[%clk 0:01:25.1]} 16... b6 {[%clk 0:02:13.8]}
17. Nd3 {[%clk 0:01:09.5]} 17... Bb7 {[%clk 0:01:55.1]} 18. a4 {[%clk
0:01:06.7]} 18... Rac8 {[%clk 0:01:49.2]} 19. Bf4 {[%clk 0:00:53]} 19... Nd4
{[%clk 0:01:39.5]} 20. Bg4 {[%clk 0:00:36.2]} 20... Nf5 {[%clk 0:01:06.2]} 21.
Ne5 {[%clk 0:00:31.5]} 21... Nh6 {[%clk 0:00:56.1]} 22. Bg3 {[%clk 0:00:19.6]}
22... Nxg4 {[%clk 0:00:51.8]} 23. Qxg4 {[%clk 0:00:18.3]} 23... Rfd8 {[%clk
0:00:43.6]} 24. a5 {[%clk 0:00:18.7]} 24... Rc2 {[%clk 0:00:29.8]} 25. axb6
{[%clk 0:00:17.1]} 25... axb6 {[%clk 0:00:31.7]} 26. Rxb6 {[%clk 0:00:17]} 26...
Ba8 {[%clk 0:00:29.8]} 27. Rbb1 {[%clk 0:00:13.9]} 27... d4 {[%clk 0:00:29.9]}
28. Rbd1 {[%clk 0:00:13.4]} 28... h6 {[%clk 0:00:16]} 29. Nd3 {[%clk 0:00:13.3]}
29... Rc3 {[%clk 0:00:14.8]} 30. Be5 {[%clk 0:00:14]} 30... Qg6 {[%clk
0:00:15.7]} 31. Qxg6 {[%clk 0:00:12.5]} 31... fxg6 {[%clk 0:00:17.6]} 32. Bg3
{[%clk 0:00:11.8]} 32... Bd5 {[%clk 0:00:17.1]} 33. f3 {[%clk 0:00:12.3]} 33...
Bf6 {[%clk 0:00:17.9]} 34. Ne5 {[%clk 0:00:12.1]} 34... Bxe5 {[%clk 0:00:16.6]}
35. Bxe5 {[%clk 0:00:14]} 35... Rc4 {[%clk 0:00:15.5]} 36. Rxd4 {[%clk
0:00:14.5]} 36... Rxd4 {[%clk 0:00:16.1]} 37. Bxd4 {[%clk 0:00:16.4]} 37... Bxf3
{[%clk 0:00:15.9]} 38. gxf3 {[%clk 0:00:16.4]} 38... Rxd4 {[%clk 0:00:16.8]} 39.
Rxe6 {[%clk 0:00:17.5]} 39... Rd2 {[%clk 0:00:17.2]} 40. Rxg6 {[%clk 0:00:17]}
40... Kf7 {[%clk 0:00:17.6]} 41. Rg4 {[%clk 0:00:17.2]} 41... Kf6 {[%clk
0:00:18]} 42. Rg2 {[%clk 0:00:18]} 42... Rd3 {[%clk 0:00:16.5]} 43. Kf2 {[%clk
0:00:18.8]} 43... g5 {[%clk 0:00:17.4]} 44. Kg3 {[%clk 0:00:19.9]} 44... Kf5
{[%clk 0:00:18.5]} 45. Re2 {[%clk 0:00:20.4]} 45... h5 {[%clk 0:00:19.1]} 46. h3
{[%clk 0:00:21]} 46... h4+ {[%clk 0:00:18.8]} 47. Kg2 {[%clk 0:00:22]} 47... Ra3
{[%clk 0:00:17.8]} 48. Rb2 {[%clk 0:00:22.1]} 48... Kf4 {[%clk 0:00:18.5]} 49.
Rb4+ {[%clk 0:00:23.1]} 49... Kf5 {[%clk 0:00:19.4]} 50. Rc4 {[%clk 0:00:21.7]}
50... Ra2+ {[%clk 0:00:19.6]} 51. Kg1 {[%clk 0:00:22.5]} 51... Re2 {[%clk
0:00:17.7]} 52. Ra4 {[%clk 0:00:21.7]} 52... Rd2 {[%clk 0:00:18.5]} 53. Rb4
{[%clk 0:00:21.9]} 53... Rd1+ {[%clk 0:00:19.1]} 54. Kg2 {[%clk 0:00:22.8]}
54... Rc1 {[%clk 0:00:19.6]} 55. Ra4 {[%clk 0:00:23.7]} 55... Rc2+ {[%clk
0:00:20.4]} 56. Kg1 {[%clk 0:00:24.7]} 56... Rc3 {[%clk 0:00:20.7]} 57. Kg2
{[%clk 0:00:25.6]} 57... Rb3 {[%clk 0:00:21.4]} 1/2-1/2